bitfinex/quotes_BTCUSD_20250530
["timestamp","ask_amount","ask_price","bid_price","bid_amount"]
[1748581421772,0.04651267,106130.0,106120.0,15.79272586]
[1748581422083,0.04651267,106130.0,106120.0,15.82099386]
[1748581422521,0.03709045,106130.0,106120.0,16.92151986]
[1748581422748,0.02766867,106130.0,106120.0,17.31236548]
[1748581423173,0.03709081,106130.0,106120.0,17.31236548]
[1748581423401,0.04651303,106130.0,106120.0,17.82017048]
[1748581423615,0.04651303,106130.0,106120.0,17.61539648]
[1748581424321,0.02766849,106130.0,106120.0,17.61539648]
[1748581424523,0.03709054,106130.0,106120.0,12.78919748]
[1748581424707,0.00882502,106130.0,106120.0,17.83919748]
[1748581424861,0.00882502,106130.0,106120.0,17.87247966]
[1748581424862,0.02766849,106130.0,106120.0,17.87247966]
[1748581425081,0.0276684,106130.0,106120.0,17.87247966]
[1748581425466,0.03709036,106130.0,106120.0,12.82247966]
[1748581425669,0.03709027,106130.0,106120.0,17.87247966]
[1748581425873,0.01824662,106130.0,106120.0,17.87247966]
[1748581426167,0.0276684,106130.0,106120.0,17.87247966]
[1748581426388,0.02766849,106130.0,106120.0,18.21247966]
[1748581426629,0.01824662,106130.0,106120.0,18.20883479]
[1748581426842,0.0276684,106130.0,106120.0,18.20883479]
[1748581427282,0.0276684,106130.0,106120.0,18.21247855]
[1748581427490,0.0276684,106130.0,106120.0,18.20883479]
[1748581427708,0.01824662,106130.0,106120.0,18.20883479]
[1748581427934,0.18851895,106160.0,106130.0,0.52844812]
[1748581428174,0.2959542,106170.0,106150.0,3.67322731]
[1748581428407,0.27375892,106170.0,106160.0,2.97544524]
[1748581428620,0.27375848,106170.0,106160.0,3.27971371]
[1748581428837,0.00941876,106170.0,106160.0,5.61283318]
[1748581429056,0.00941876,106170.0,106160.0,3.54353804]
[1748581429057,0.19779589,106170.0,106160.0,3.54353804]
[1748581429274,0.19779589,106170.0,106160.0,3.9438034]
[1748581429275,0.19828665,106170.0,106160.0,3.9438034]
[1748581429506,0.19828665,106170.0,106160.0,4.3438034]
[1748581429721,0.19828665,106170.0,106160.0,7.1161614]
[1748581429931,0.19828665,106170.0,106160.0,6.0253714]
[1748581430142,0.19828665,106170.0,106160.0,5.2048924]
[1748581430586,0.19828665,106170.0,106160.0,5.5448924]
[1748581430791,0.19828665,106170.0,106160.0,7.0944154]
[1748581431006,0.19828665,106170.0,106160.0,6.95042766]
[1748581431215,0.18886789,106170.0,106160.0,5.49152904]
[1748581431430,0.18886789,106170.0,106160.0,4.95363304]
[1748581431634,0.18886789,106170.0,106160.0,4.89876004]
[1748581431845,0.18886789,106170.0,106160.0,4.96897704]
[1748581432500,0.18886789,106170.0,106160.0,4.95310604]
[1748581432917,0.18886789,106170.0,106160.0,2.05998304]
[1748581433162,0.18886789,106170.0,106160.0,6.15811304]
[1748581434099,0.18886789,106170.0,106160.0,6.49285604]
[1748581435046,0.18886789,106170.0,106160.0,6.54807004]
[1748581435504,0.18886789,106170.0,106160.0,6.32110304]
[1748581436001,0.18886789,106170.0,106160.0,2.05998304]
[1748581436233,0.18886789,106170.0,106160.0,6.55024904]
[1748581436459,0.18886789,106170.0,106160.0,5.64353204]
[1748581437151,0.18886789,106170.0,106160.0,5.66689004]
[1748581437388,0.18886789,106170.0,106160.0,4.15965804]
[1748581437612,0.18886789,106170.0,106160.0,4.14807804]
[1748581438055,0.18886789,106170.0,106160.0,2.05998304]
[1748581438296,0.18886789,106170.0,106160.0,4.85364404]
[1748581438961,0.18886789,106170.0,106160.0,4.76405904]
[1748581439196,0.18886789,106170.0,106160.0,4.35194304]
[1748581439424,0.18886789,106170.0,106160.0,4.47902204]
[1748581440169,0.18886789,106170.0,106160.0,5.16145004]
[1748581440398,0.18886789,106170.0,106160.0,5.13807304]
[1748581441372,0.18886789,106170.0,106160.0,5.25470404]
[1748581441591,0.18886789,106170.0,106160.0,5.15974904]
[1748581442065,0.18886789,106170.0,106160.0,4.77071304]
[1748581442310,0.20486789,106170.0,106160.0,1.83281842]
[1748581442544,0.22016789,106170.0,106160.0,1.52299957]
[1748581443035,0.22871443,106160.0,106150.0,0.40676]
[1748581443284,0.22871443,106160.0,106150.0,0.09105395]
[1748581443532,0.2072923,106130.0,106120.0,10.02021481]
[1748581443776,0.2072923,106130.0,106120.0,10.12023425]
[1748581443777,0.31415489,106130.0,106120.0,10.12023425]
[1748581444013,0.31415489,106130.0,106120.0,10.0009143]
[1748581444240,0.31415489,106130.0,106120.0,10.2873543]
[1748581444742,0.2381923,106130.0,106120.0,10.2873543]
[1748581445215,0.23868276,106130.0,106120.0,10.2873543]
[1748581446213,0.22308276,106130.0,106120.0,11.05155286]
[1748581446475,0.20778276,106130.0,106120.0,10.37840825]
[1748581446706,0.20778276,106130.0,106120.0,10.53209625]
[1748581446947,0.20778276,106130.0,106120.0,10.92254186]
[1748581447210,0.20778276,106130.0,106120.0,11.01002186]
[1748581447211,0.20978276,106130.0,106120.0,11.01002186]
[1748581447704,0.20978276,106130.0,106120.0,11.02860659]
[1748581447969,0.20978276,106130.0,106120.0,10.87491859]
[1748581448213,0.20978276,106130.0,106120.0,10.09196825]
[1748581448214,0.22518276,106130.0,106120.0,10.09196825]
[1748581448455,0.24118276,106130.0,106120.0,10.0009143]
[1748581448687,0.24118276,106130.0,106120.0,10.2877143]
[1748581449160,0.24118276,106130.0,106120.0,10.37876825]
[1748581449396,0.20978276,106130.0,106120.0,10.48930625]
[1748581452507,0.20978276,106130.0,106120.0,10.20250625]
[1748581452730,0.20978276,106130.0,106120.0,10.57710625]
[1748581454091,0.20978276,106130.0,106120.0,10.96755186]
[1748581454311,0.20978276,106130.0,106120.0,10.57710625]
[1748581455709,0.19978276,106130.0,106120.0,10.57710625]
[1748581456432,0.20920498,106130.0,106120.0,10.57710625]
[1748581457313,0.20920498,106130.0,106120.0,10.46656825]
[1748581457565,0.22430498,106130.0,106120.0,10.46656825]
[1748581458266,0.22430498,106130.0,106120.0,10.3757543]
[1748581458267,0.24070498,106130.0,106120.0,10.3757543]
[1748581459244,0.22430498,106130.0,106120.0,10.46680825]
[1748581459508,0.22430498,106130.0,106120.0,11.10213986]
[1748581459509,0.20920498,106130.0,106120.0,11.10213986]
[1748581459946,0.20920498,106130.0,106120.0,10.71169425]
[1748581460229,0.20920498,106130.0,106120.0,10.57449825]
[1748581460447,0.20920498,106130.0,106120.0,11.20355825]
[1748581461365,0.20707506,106130.0,106120.0,10.85355825]
[1748581465263,0.20707506,106130.0,106120.0,10.85264395]
[1748581468435,0.20707506,106130.0,106120.0,10.47780395]
[1748581468652,0.20707506,106130.0,106120.0,10.85236395]
[1748581470415,0.20707506,106130.0,106120.0,10.86806395]
[1748581474588,0.20707506,106130.0,106120.0,11.24301865]
[1748581474844,0.20707506,106130.0,106120.0,11.63346426]
[1748581476491,0.20707506,106130.0,106120.0,11.22701865]
[1748581478990,0.20707506,106130.0,106120.0,11.22685865]
[1748581479618,0.20707506,106130.0,106120.0,11.24325865]
[1748581480597,0.20707506,106130.0,106120.0,11.22685865]
[1748581484094,0.20707506,106130.0,106120.0,10.94029865]
[1748581484307,0.20707506,106130.0,106120.0,11.22685865]
[1748581488435,0.20707506,106130.0,106120.0,11.24335865]
[1748581489541,0.20707506,106130.0,106120.0,11.22685865]
[1748581493325,0.20707506,106130.0,106120.0,10.94029865]
[1748581493578,0.20707506,106130.0,106120.0,11.22685865]
[1748581501328,0.20707506,106130.0,106120.0,11.63280426]
[1748581502191,0.01862694,106130.0,106120.0,11.84011627]
[1748581502469,0.1972667,106140.0,106120.0,11.84011627]
[1748581502470,0.03708517,106140.0,106130.0,2.64497952]
[1748581502691,0.03708517,106140.0,106130.0,3.1692859]
[1748581502692,0.02771198,106140.0,106130.0,3.1692859]
[1748581502908,0.02771189,106140.0,106130.0,3.1692859]
[1748581503122,0.02771198,106140.0,106130.0,3.17292945]
[1748581503335,0.00887011,106140.0,106130.0,6.53756606]
[1748581503800,0.018291,106140.0,106130.0,6.53756606]
[1748581504003,0.02771171,106140.0,106130.0,6.14712045]
[1748581504474,0.03713269,106140.0,106130.0,6.14712045]
[1748581504902,0.02771171,106140.0,106130.0,6.14712045]
[1748581505114,0.02771171,106140.0,106130.0,6.54812045]
[1748581505328,0.02771171,106140.0,106130.0,1.49812045]
[1748581505532,0.02771171,106140.0,106130.0,6.54812045]
[1748581505741,0.02771171,106140.0,106130.0,6.5454769]
[1748581505947,0.00887011,106140.0,106130.0,6.93592251]
[1748581506150,0.01829082,106140.0,106130.0,6.93592251]
[1748581506370,0.01829082,106140.0,106130.0,1.88592251]
[1748581506578,0.01829082,106140.0,106130.0,6.93592251]
[1748581506796,0.00887011,106140.0,106130.0,6.93592251]
[1748581507000,0.00887011,106140.0,106130.0,6.5454769]
[1748581507418,0.01829091,106140.0,106130.0,1.4954769]
[1748581507628,0.01829091,106140.0,106130.0,6.5454769]
[1748581507828,0.00887011,106140.0,106130.0,6.5454769]
[1748581507961,0.01829091,106140.0,106130.0,6.5454769]
[1748581508382,0.00887011,106140.0,106130.0,6.5454769]
[1748581510279,0.00887011,106140.0,106130.0,6.54912045]
[1748581510497,0.00887011,106140.0,106130.0,1.49912045]
[1748581510722,0.018291,106140.0,106130.0,6.5454769]
[1748581511160,0.00887011,106140.0,106130.0,6.5454769]
[1748581512120,0.00887011,106140.0,106130.0,6.93592251]
[1748581513525,0.00887011,106140.0,106130.0,6.93492251]
[1748581513999,0.00887011,106140.0,106130.0,6.93592251]
[1748581514231,0.00887011,106140.0,106130.0,6.93992251]
[1748581514482,0.00887011,106140.0,106130.0,6.93792251]
[1748581515377,0.01829091,106140.0,106130.0,6.5474769]
[1748581515590,0.01829091,106140.0,106130.0,6.5514769]
[1748581517115,0.02771189,106140.0,106130.0,6.5514769]
[1748581517340,0.02771189,106140.0,106130.0,6.16103129]
[1748581517341,0.01829091,106140.0,106130.0,6.16103129]
[1748581517567,0.0277118,106140.0,106130.0,6.9581969]
[1748581517825,0.04655421,106140.0,106130.0,6.12863307]
[1748581518047,0.21614333,106140.0,106130.0,2.54235741]
[1748581518291,0.30820592,106140.0,106130.0,0.93325395]
[1748581518514,0.32400592,106140.0,106130.0,0.87969395]
[1748581518740,0.32400592,106140.0,106130.0,1.21969395]
[1748581518959,0.32400592,106140.0,106130.0,1.39118995]
[1748581519206,0.32400592,106140.0,106130.0,0.49777395]
[1748581519443,0.32400592,106140.0,106130.0,0.87469395]
[1748581519661,0.33283426,106140.0,106130.0,0.87742664]
[1748581519875,0.32400592,106140.0,106130.0,0.87742664]
[1748581520349,0.24804333,106140.0,106130.0,0.87542664]
[1748581520571,0.24804333,106140.0,106130.0,0.87342664]
[1748581520790,0.24804333,106140.0,106130.0,0.87446664]
[1748581523221,0.24804333,106140.0,106130.0,0.50050664]
[1748581523433,0.24804333,106140.0,106130.0,0.87446664]
[1748581525017,0.24804333,106140.0,106130.0,0.58798664]
[1748581525229,0.24804333,106140.0,106130.0,0.87446664]
[1748581525687,0.24804333,106140.0,106130.0,0.50050664]
[1748581525896,0.24804333,106140.0,106130.0,0.87446664]
[1748581527300,0.24804333,106140.0,106130.0,0.50050664]
[1748581527516,0.24804333,106140.0,106130.0,0.87446664]
[1748581528795,0.24804333,106140.0,106130.0,0.87450664]
[1748581531376,0.24804333,106140.0,106130.0,0.87446664]
[1748581532093,0.24804333,106140.0,106130.0,0.09021269]
[1748581532306,0.24804333,106140.0,106130.0,0.37673269]
[1748581533702,0.24804333,106140.0,106130.0,0.37573269]
[1748581533921,0.24804333,106140.0,106130.0,0.37473269]
[1748581538518,0.25685657,106140.0,106130.0,0.37473269]
[1748581538730,0.24804333,106140.0,106130.0,0.37473269]
[1748581538950,0.25685657,106140.0,106130.0,0.37473269]
[1748581539370,0.24804333,106140.0,106130.0,0.37473269]
[1748581539594,0.25685657,106140.0,106130.0,0.37473269]
[1748581539824,0.24804333,106140.0,106130.0,0.37473269]
[1748581543721,0.04655439,106140.0,106130.0,5.55711332]
[1748581543938,0.04655439,106140.0,106130.0,6.86951732]
[1748581544159,0.0559759,106140.0,106130.0,6.58653454]
[1748581544377,0.0559759,106140.0,106130.0,6.43778632]
[1748581544593,0.05597581,106140.0,106130.0,6.43778632]
[1748581544808,0.05597581,106140.0,106130.0,6.43878632]
[1748581545026,0.05597581,106140.0,106130.0,1.89977632]
[1748581545242,0.05597652,106140.0,106130.0,6.94977632]
[1748581545898,0.05597652,106140.0,106130.0,6.92334632]
[1748581546120,0.05597652,106140.0,106130.0,1.89977632]
[1748581546363,0.24440689,106140.0,106130.0,6.84768554]
[1748581546641,0.21614341,106140.0,106130.0,2.8869801]
[1748581546879,0.21614341,106140.0,106130.0,2.8870601]
[1748581547108,0.21614341,106140.0,106130.0,2.8964825]
[1748581547385,0.21614341,106140.0,106130.0,4.7780975]
[1748581547824,0.21614341,106140.0,106130.0,4.96654562]
[1748581548085,0.21614341,106140.0,106130.0,0.00273269]
[1748581548086,0.28268458,106140.0,106130.0,0.00273269]
[1748581548303,0.28268458,106140.0,106130.0,0.37685269]
[1748581548304,0.31558458,106140.0,106130.0,0.37685269]
[1748581548558,0.31558458,106140.0,106130.0,0.09025269]
[1748581548799,0.31558458,106140.0,106130.0,0.00273269]
[1748581549019,0.31558458,106140.0,106130.0,0.37681269]
[1748581549236,0.31558458,106140.0,106130.0,0.37581269]
[1748581550310,0.31558458,106140.0,106130.0,0.00173269]
[1748581550533,0.31558458,106140.0,106130.0,0.37577269]
[1748581550748,0.31558458,106140.0,106130.0,0.37477269]
[1748581551429,0.23962199,106140.0,106130.0,0.37477269]
[1748581552296,0.23962199,106140.0,106130.0,0.00073269]
[1748581552533,0.23962199,106140.0,106130.0,0.37477269]
[1748581552753,0.23962199,106140.0,106130.0,0.00073269]
[1748581552970,0.23962199,106140.0,106130.0,0.37477269]
[1748581553618,0.22322199,106140.0,106130.0,0.37477269]
[1748581555648,0.20672199,106140.0,106130.0,0.37477269]
[1748581562657,0.20672199,106140.0,106130.0,0.37489269]
[1748581562927,0.22242199,106140.0,106130.0,0.08825269]
[1748581563146,0.23852199,106140.0,106130.0,0.37497269]
[1748581564438,0.22242199,106140.0,106130.0,0.37497269]
[1748581565773,0.20672199,106140.0,106130.0,0.37497269]
[1748581566869,0.20672199,106140.0,106130.0,0.37509269]
[1748581573340,0.23772199,106140.0,106130.0,0.37549269]
[1748581573804,0.22262199,106140.0,106130.0,0.37549269]
[1748581576876,0.22262199,106140.0,106130.0,0.37541269]
[1748581580162,0.20672199,106140.0,106130.0,0.37541269]
[1748581581126,0.20672199,106140.0,106130.0,0.39091269]
[1748581582917,0.20672199,106140.0,106130.0,0.00073269]
[1748581583145,0.20672199,106140.0,106130.0,0.37609269]
[1748581584257,0.20672199,106140.0,106130.0,0.39189269]
[1748581588915,0.20672199,106140.0,106130.0,0.40849269]
[1748581592518,0.21555002,106140.0,106130.0,0.40849269]
[1748581592740,0.20672199,106140.0,106130.0,0.40849269]
[1748581595499,0.21555002,106140.0,106130.0,0.40849269]
[1748581595711,0.20672199,106140.0,106130.0,0.40849269]
[1748581596860,0.22182199,106140.0,106130.0,0.37609269]
[1748581597310,0.22182199,106140.0,106130.0,0.08865269]
[1748581597564,0.22182199,106140.0,106130.0,0.37617269]
[1748581599301,0.22182199,106140.0,106130.0,0.00073269]
[1748581599514,0.20672199,106140.0,106130.0,0.37609269]
[1748581599989,0.57772199,106140.0,106130.0,0.00073269]
[1748581600229,0.57772199,106140.0,106130.0,0.28821269]
[1748581600230,0.65368458,106140.0,106130.0,0.28821269]
[1748581600441,0.75473853,106140.0,106130.0,0.28821269]
[1748581600661,0.83507895,106140.0,106130.0,0.28821269]
[1748581601322,0.76979371,106140.0,106130.0,0.28821269]
[1748581602173,0.76979371,106140.0,106130.0,0.00073269]
[1748581602372,0.76979371,106140.0,106130.0,0.28817269]
[1748581602993,0.75473853,106140.0,106130.0,0.28817269]
[1748581604649,0.67877594,106140.0,106130.0,0.28817269]
[1748581605084,0.67877594,106140.0,106130.0,0.28813269]
[1748581605919,0.67877594,106140.0,106130.0,0.00073269]
[1748581606126,0.66995486,106140.0,106130.0,0.28809269]
[1748581608005,0.66995486,106140.0,106130.0,0.00073269]
[1748581622764,0.66756386,106140.0,106130.0,0.00073269]
[1748581624643,0.65196386,106140.0,106130.0,0.00073269]
[1748581627253,0.66701904,106140.0,106130.0,0.00073269]
[1748581627476,0.73311904,106140.0,106130.0,0.00073269]
[1748581627709,0.76140004,106140.0,106130.0,0.00073269]
[1748581630400,0.30161904,106140.0,106130.0,0.03303269]
[1748581630862,0.53550991,106140.0,106130.0,0.03303269]
[1748581638782,0.53550991,106140.0,106130.0,0.00073269]
[1748581639018,0.71671904,106140.0,106130.0,0.00073269]
[1748581639275,0.71671904,106140.0,106130.0,0.28833269]
[1748581639708,0.66671904,106140.0,106130.0,0.28833269]
[1748581641532,0.66671904,106140.0,106130.0,0.00073269]
[1748581645223,0.73195222,106140.0,106130.0,0.00073269]
[1748581645456,0.73197413,106140.0,106130.0,0.00073269]
[1748581646217,0.79807413,106140.0,106130.0,0.00073269]
[1748581646834,0.78197413,106140.0,106130.0,0.00073269]
[1748581647579,0.71671904,106140.0,106130.0,0.00073269]
[1748581647816,0.78198061,106140.0,106130.0,0.00073269]
[1748581649069,0.76688061,106140.0,106130.0,0.00073269]
[1748581649273,0.76688061,106140.0,106130.0,0.01723269]
[1748581651854,0.73352965,106140.0,106130.0,0.01723269]
[1748581652102,0.76687854,106140.0,106130.0,0.01723269]
[1748581654551,0.76687854,106140.0,106130.0,0.00073269]
[1748581656087,0.76687795,106140.0,106130.0,0.00073269]
[1748581656514,0.77640617,106140.0,106130.0,0.00073269]
[1748581659647,0.67535222,106140.0,106130.0,0.03193269]
[1748581659858,0.62535222,106140.0,106130.0,0.03193269]
[1748581660063,0.56009331,106140.0,106130.0,0.03193269]
[1748581660469,0.61009331,106140.0,106130.0,0.03193269]
[1748581660645,0.56009331,106140.0,106130.0,0.03193269]
[1748581661887,0.61009331,106140.0,106130.0,0.03193269]
[1748581662412,0.56009331,106140.0,106130.0,0.03193269]
[1748581662617,0.61009331,106140.0,106130.0,0.03193269]
[1748581663384,0.56009331,106140.0,106130.0,0.03193269]
[1748581663559,0.61009331,106140.0,106130.0,0.03193269]
[1748581663942,0.56009331,106140.0,106130.0,0.03193269]
[1748581664148,0.61009331,106140.0,106130.0,0.31865269]
[1748581664355,0.77640445,106140.0,106130.0,0.31865269]
[1748581664631,0.77640531,106140.0,106130.0,0.30305269]
[1748581666190,0.77640531,106140.0,106130.0,0.01633269]
[1748581666557,0.77640531,106140.0,106130.0,0.30305269]
[1748581666764,0.77640531,106140.0,106130.0,0.01633269]
[1748581667014,0.77640531,106140.0,106130.0,0.30305269]
[1748581668883,0.77640751,106140.0,106130.0,0.00073269]
[1748581670542,0.77640751,106140.0,106130.0,0.01623269]
[1748581672399,0.77640751,106140.0,106130.0,0.00073269]
[1748581673077,0.77640545,106140.0,106130.0,0.00073269]
[1748581674681,0.77640545,106140.0,106130.0,0.01593269]
[1748581677400,0.77640938,106140.0,106130.0,0.01593269]
[1748581682409,0.77642124,106140.0,106130.0,0.01593269]
[1748581685587,0.77642124,106140.0,106130.0,0.00073269]
[1748581686693,0.77642124,106140.0,106130.0,0.01593269]
[1748581687825,0.77642124,106140.0,106130.0,0.00073269]
[1748581688948,0.8803142,106140.0,106130.0,0.00073269]
[1748581689165,0.87524396,106140.0,106130.0,0.00073269]
[1748581690411,0.86014396,106140.0,106130.0,0.00073269]
[1748581690621,0.87968481,106140.0,106130.0,0.00073269]
[1748581691050,0.54787034,106130.0,106120.0,10.0164]
[1748581691271,0.54787034,106130.0,106120.0,10.0326]
[1748581691272,0.71926086,106130.0,106120.0,10.0326]
[1748581691764,1.20716086,106130.0,106120.0,10.0326]
[1748581692513,1.20716503,106130.0,106120.0,10.0326]
[1748581694055,1.21016503,106130.0,106120.0,10.0326]
[1748581696648,1.17679391,106130.0,106120.0,10.0326]
[1748581696772,1.21014159,106130.0,106120.0,10.0326]
[1748581696974,1.49690159,106130.0,106120.0,10.0326]
[1748581697173,1.21014159,106130.0,106120.0,10.0326]
[1748581697403,1.17823411,106130.0,106120.0,10.0326]
[1748581697608,1.14488643,106130.0,106120.0,10.0326]
[1748581699237,1.13488643,106130.0,106120.0,10.0326]
[1748581699447,1.02877034,106130.0,106120.0,10.0326]
[1748581712889,1.02877034,106130.0,106120.0,10.31944]
[1748581722134,0.68877034,106130.0,106120.0,10.31944]
[1748581722744,0.68681434,106130.0,106120.0,10.31944]
[1748581727334,0.19891434,106130.0,106120.0,10.31944]
[1748581743161,0.53891434,106130.0,106120.0,10.31944]
[1748581743374,0.19891434,106130.0,106120.0,10.31944]
[1748581748763,0.19891434,106130.0,106120.0,10.0326]
[1748581748985,0.19891434,106130.0,106120.0,10.31928]
[1748581751113,0.20833648,106130.0,106120.0,11.72425995]
[1748581751356,0.21971479,106130.0,106120.0,13.7122538]
[1748581751592,0.21029283,106130.0,106120.0,14.1122538]
[1748581751822,0.21029283,106130.0,106120.0,14.00863068]
[1748581752041,0.19787052,106130.0,106120.0,12.2653918]
[1748581752276,0.19787052,106130.0,106120.0,12.6845628]
[1748581752995,0.19787052,106130.0,106120.0,12.6865628]
[1748581753200,0.19787052,106130.0,106120.0,12.6885628]
[1748581753413,0.19787052,106130.0,106120.0,13.7881158]
[1748581753650,0.19787052,106130.0,106120.0,13.8072564]
[1748581754070,0.19787052,106130.0,106120.0,12.7031454]
[1748581754282,0.19787052,106130.0,106120.0,13.6372094]
[1748581754906,0.19787052,106130.0,106120.0,13.6111984]
[1748581755313,0.19787052,106130.0,106120.0,13.6064174]
[1748581755560,0.19787052,106130.0,106120.0,12.6778204]
[1748581756420,0.19787052,106130.0,106120.0,13.8184084]
[1748581757056,0.19787052,106130.0,106120.0,13.8054774]
[1748581757258,0.19787052,106130.0,106120.0,13.6046504]
[1748581757496,0.19702419,106130.0,106120.0,13.6121344]
[1748581758262,0.19702419,106130.0,106120.0,13.3333574]
[1748581758487,0.19702419,106130.0,106120.0,13.3308724]
[1748581758714,0.19702419,106130.0,106120.0,13.2908734]
[1748581759158,0.19702419,106130.0,106120.0,12.5164474]
[1748581759608,0.19702419,106130.0,106120.0,13.73315728]
[1748581760570,0.19702419,106130.0,106120.0,14.21427028]
[1748581760801,0.19702419,106130.0,106120.0,14.14284028]
[1748581761022,0.19702419,106130.0,106120.0,14.09313828]
[1748581761493,0.02826623,106130.0,106120.0,14.12140717]
[1748581761725,0.03768863,106130.0,106120.0,14.96601217]
[1748581761958,0.02826676,106130.0,106120.0,14.95658932]
[1748581762451,0.21671488,106130.0,106120.0,14.95658941]
[1748581762701,0.21671488,106130.0,106120.0,15.40334034]
[1748581763476,0.02826676,106130.0,106120.0,15.40334034]
[1748581763695,0.02826676,106130.0,106120.0,16.20012634]
[1748581764164,0.21671488,106130.0,106120.0,16.20012634]
[1748581764847,0.21671488,106130.0,106120.0,16.20020134]
[1748581765634,0.21671488,106130.0,106120.0,16.19077841]
[1748581765869,0.20729274,106130.0,106120.0,16.19419439]
[1748581766139,0.20729274,106130.0,106120.0,16.00543917]
[1748581766631,0.20729274,106130.0,106120.0,15.99601632]
[1748581766845,0.20729274,106130.0,106120.0,16.24021117]
[1748581767070,0.00942196,106130.0,106120.0,16.24021117]
[1748581767337,0.02826641,106130.0,106120.0,16.24963393]
[1748581767806,0.22613622,106130.0,106120.0,16.22136539]
[1748581768032,0.22613622,106130.0,106120.0,15.18729332]
[1748581768464,0.22613622,106130.0,106120.0,14.75803832]
[1748581768965,0.22613622,106130.0,106120.0,14.76746117]
[1748581769191,0.22613622,106130.0,106120.0,14.86534417]
[1748581769422,0.22613622,106130.0,106120.0,14.15914617]
[1748581769890,0.0376881,106130.0,106120.0,14.16856893]
[1748581770118,0.0471105,106130.0,106120.0,16.37195117]
[1748581770589,0.0471105,106130.0,106120.0,16.15837117]
[1748581771053,0.03768881,106130.0,106120.0,15.38673032]
[1748581771559,0.03768881,106130.0,106120.0,15.25085732]
[1748581772235,0.03768881,106130.0,106120.0,15.57068232]
[1748581772610,0.03768881,106130.0,106120.0,15.42068232]
[1748581772853,0.22613693,106130.0,106120.0,15.42068232]
[1748581773056,0.21671497,106130.0,106120.0,15.60798232]
[1748581773316,0.21671497,106130.0,106120.0,15.62210932]
[1748581773999,0.21671497,106130.0,106120.0,15.53672632]
[1748581774226,0.21671497,106130.0,106120.0,11.80200732]
[1748581774445,0.21671497,106130.0,106120.0,15.59697332]
[1748581774909,0.21671497,106130.0,106120.0,15.52554332]
[1748581775387,0.21671497,106130.0,106120.0,15.55437032]
[1748581775606,0.21671497,106130.0,106120.0,15.54270032]
[1748581775900,0.20729283,106130.0,106120.0,15.53327739]
[1748581776124,0.20729283,106130.0,106120.0,15.54270041]
[1748581776343,0.20729283,106130.0,106120.0,15.55820941]
[1748581777013,0.20729283,106130.0,106120.0,15.53132541]
[1748581777484,0.20729283,106130.0,106120.0,15.53135441]
[1748581777708,0.20729283,106130.0,106120.0,15.51038341]
[1748581777965,0.19787052,106130.0,106120.0,15.58848048]
[1748581778199,0.19787052,106130.0,106120.0,15.59790359]
[1748581778428,0.19787052,106130.0,106120.0,15.70049259]
[1748581778656,0.19787052,106130.0,106120.0,15.61350848]
[1748581778882,0.19787052,106130.0,106120.0,15.58038559]
[1748581779115,0.18844812,106130.0,106120.0,15.38630528]
[1748581779350,0.18844812,106130.0,106120.0,15.38265748]
[1748581779570,0.18844812,106130.0,106120.0,15.51496459]
[1748581780380,0.18844812,106130.0,106120.0,15.51860814]
[1748581780621,0.18844812,106130.0,106120.0,15.75193214]
[1748581781636,0.18844812,106130.0,106120.0,15.77257014]
[1748581781850,0.18844812,106130.0,106120.0,15.73891814]
[1748581782068,0.18844812,106130.0,106120.0,15.62283414]
[1748581782705,0.18844812,106130.0,106120.0,15.72342114]
[1748581783156,0.18844812,106130.0,106120.0,15.58949503]
[1748581783592,0.18844812,106130.0,106120.0,15.57949503]
[1748581784743,0.18844812,106130.0,106120.0,15.74196203]
[1748581785766,0.18844812,106130.0,106120.0,15.74149803]
[1748581786394,0.18844812,106130.0,106120.0,15.72360403]
[1748581786823,0.18844812,106130.0,106120.0,15.72054883]
[1748581787046,0.18844812,106130.0,106120.0,15.72997212]
[1748581787678,0.18844812,106130.0,106120.0,11.89317132]
[1748581787890,0.18844812,106130.0,106120.0,15.84504432]
[1748581788125,0.15944812,106130.0,106120.0,15.84504432]
[1748581788338,0.15944812,106130.0,106120.0,15.85446743]
[1748581788777,0.15944812,106130.0,106120.0,15.86579443]
[1748581790474,0.15944812,106130.0,106120.0,15.76429443]
[1748581790959,0.15944812,106130.0,106120.0,15.61543032]
[1748581791180,0.15944812,106130.0,106120.0,15.58531232]
[1748581791401,0.15944812,106130.0,106120.0,15.59473543]
[1748581791609,0.15944812,106130.0,106120.0,15.58531232]
[1748581792050,0.15944812,106130.0,106120.0,15.30528912]
[1748581792272,0.15944812,106130.0,106120.0,15.31471232]
[1748581792977,0.15944812,106130.0,106120.0,15.50590832]
[1748581794014,0.15944812,106130.0,106120.0,15.22319595]
[1748581794229,0.15944812,106130.0,106120.0,13.09100795]
[1748581794452,0.15944812,106130.0,106120.0,13.0574544]
[1748581794691,0.15944812,106130.0,106120.0,10.78074255]
[1748581794912,0.19114812,106130.0,106120.0,10.20171455]
[1748581795128,0.19114812,106130.0,106120.0,10.48823455]
[1748581796904,0.19114812,106130.0,106120.0,10.09152]
[1748581797163,0.19114812,106130.0,106120.0,10.004]
[1748581797404,0.19114812,106130.0,106120.0,10.29052]
[1748581798090,0.19114812,106130.0,106120.0,10.28852]
[1748581798521,0.19114812,106130.0,106120.0,10.003]
[1748581798745,0.19114812,106130.0,106120.0,10.28752]
[1748581798954,0.19114812,106130.0,106120.0,10.28852]
[1748581799385,0.19114812,106130.0,106120.0,10.28856]
[1748581801302,0.19114812,106130.0,106120.0,10.002]
[1748581801515,0.19114812,106130.0,106120.0,10.28856]
[1748581802625,0.19114812,106130.0,106120.0,10.002]
[1748581802843,0.19114812,106130.0,106120.0,10.28856]
[1748581803846,0.19114812,106130.0,106120.0,10.28656]
[1748581804284,0.19514812,106130.0,106120.0,10.28656]
[1748581805760,0.19514812,106130.0,106120.0,10.2866]
[1748581813712,0.28620207,106130.0,106120.0,10.0]
[1748581813919,0.28620207,106130.0,106120.0,10.2866]
[1748581818210,0.19514812,106130.0,106120.0,10.2866]
[1748581818423,0.17984812,106130.0,106120.0,10.2866]
[1748581819263,0.19524812,106130.0,106120.0,10.2866]
[1748581821908,0.53524812,106130.0,106120.0,10.2866]
[1748581828385,0.51984812,106130.0,106120.0,10.2866]
[1748581830205,0.53574812,106130.0,106120.0,10.2866]
[1748581834335,0.53574812,106130.0,106120.0,10.0]
[1748581834541,0.53574812,106130.0,106120.0,10.2866]
[1748581835117,0.51984812,106130.0,106120.0,10.2866]
[1748581835591,0.62680207,106130.0,106120.0,10.2866]
[1748581836927,0.61090207,106130.0,106120.0,10.2866]
[1748581840097,0.59450207,106130.0,106120.0,10.2866]
[1748581841927,0.61030207,106130.0,106120.0,10.2866]
[1748581842422,0.59450207,106130.0,106120.0,10.2866]
[1748581842979,0.59450207,106130.0,106120.0,10.0]
[1748581843396,0.61030207,106130.0,106120.0,10.2866]
[1748581844688,0.61974164,106130.0,106120.0,10.2866]
[1748581845330,0.60394164,106130.0,106120.0,10.2866]
[1748581846571,0.60394164,106130.0,106120.0,10.3022]
[1748581851303,0.51288769,106130.0,106120.0,10.3181]
[1748581860317,0.17288769,106130.0,106120.0,10.3181]
[1748581860966,0.51288769,106130.0,106120.0,10.3181]